fUST/lending_fUST_20250331
["ID","MTS","AMOUNT","RATE_DAILY","PERIOD"]
[356900155,1743402652948,-827.86,0.00020273,2]
[356900156,1743402652958,-2349.9,0.00020273,2]
[356900157,1743402652967,-2019.04,0.00020273,2]
[356900158,1743402652977,-1215.57,0.00020273,2]
[356900159,1743402652986,-500.0,0.00020273,2]
[356900160,1743402652996,-517.24,0.00020273,2]
[356900161,1743402653006,-500.0,0.00020273,2]
[356900162,1743402653015,-500.0,0.00020273,2]
[356900163,1743402653025,-4307.25,0.00020273,2]
[356900164,1743402653035,-500.0,0.00020273,2]
[356900165,1743402653044,-500.0,0.00020273,2]
[356900166,1743402653054,-1020.46,0.00020273,2]
[356900167,1743402653064,-692.44,0.00020273,2]
[356900168,1743402653074,-500.0,0.00020273,2]
[356900169,1743402653084,-500.0,0.00020273,2]
[356900170,1743402653094,-623.32,0.00020273,2]
[356900171,1743402653104,-1216.58,0.00020273,2]
[356900172,1743402653114,-500.0,0.00020273,2]
[356900173,1743402653124,-500.0,0.00020273,2]
[356900174,1743402653134,-2912.2,0.00020273,2]
[356900175,1743402653143,-1227.11,0.00020273,2]
[356900176,1743402653153,-1277.13,0.00020273,2]
[356900177,1743402653163,-9548.01,0.00020273,2]
[356900178,1743402653172,-2789.71,0.00020273,2]
[356900179,1743402653182,-1300.3,0.00020273,2]
[356900180,1743402653191,-1442.62,0.00020273,2]
[356900181,1743402653201,-1114.35,0.00020273,2]
[356900182,1743402653210,-539.51,0.00020273,2]
[356900183,1743402653219,-500.0,0.00020273,2]
[356900184,1743402653228,-1887.26,0.00020273,2]
[356900185,1743402653238,-1746.47,0.00020273,2]
[356900186,1743402653247,-500.0,0.00020273,2]
[356900187,1743402653257,-655.92,0.00020273,2]
[356900188,1743402653266,-3799.96,0.00020273,2]
[356900189,1743402653276,-2204.33,0.00020273,2]
[356900190,1743402653285,-3692.0,0.00020273,2]
[356900191,1743402653294,-913.47176604,0.00020274,2]
[356900192,1743402653304,-150.29,0.00020274,2]
[356900193,1743402653314,-150.29,0.00020274,2]
[356900194,1743402653323,-500.0,0.0002031,2]
[356900195,1743402653333,-153.45985963,0.0002031,2]
[356900196,1743402653343,-500.0,0.0002031,2]
[356900197,1743402653353,-500.0,0.0002031,2]
[356900198,1743402653363,-500.0,0.0002031,2]
[356900199,1743402653372,-500.0,0.0002031,2]
[356900200,1743402653382,-500.0,0.0002031,2]
[356900201,1743402653391,-500.0,0.0002031,2]
[356900202,1743402653400,-500.0,0.0002031,2]
[356900203,1743402653410,-500.66529769,0.0002031,2]
[356900204,1743402653419,-500.0,0.0002031,2]
[356900205,1743402653429,-299.09551166,0.0002031,2]
[356900206,1743402653438,-500.0,0.0002031,2]
[356900207,1743402653448,-500.87931525,0.0002031,2]
[356900208,1743402653457,-415.91864808,0.0002031,2]
[356900209,1743402653467,-502.52745845,0.0002031,2]
[356900210,1743402653477,-500.0,0.0002031,2]
[356900211,1743402653486,-500.0,0.0002031,2]
[356900212,1743402653496,-500.0,0.0002031,2]
[356900213,1743402653506,-501.82894565,0.0002031,2]
[356900214,1743402653516,-500.0,0.0002031,2]
[356900215,1743402653525,-199.96983621,0.0002031,2]
[356900216,1743402653535,-500.0,0.0002031,2]
[356900217,1743402653545,-500.0,0.0002031,2]
[356900218,1743402653554,-500.0,0.0002031,2]
[356900219,1743402653564,-500.8376664,0.00020324,2]
[356900220,1743402653573,-504.79659403,0.00020324,2]
[356900221,1743402653583,-500.0,0.00020335,2]
[356900222,1743402653593,-500.0,0.00020335,2]
[356900223,1743402653603,-172.94674285,0.00020335,2]
[356900224,1743402653612,-503.59648438,0.00020344,2]
[356900225,1743402653622,-500.0,0.00020344,2]
[356900226,1743402653632,-500.44086804,0.00020344,2]
[356900227,1743402653642,-389.7651446,0.00020344,2]
[356900228,1743402653652,-289.84715264,0.00020385,2]
[356900229,1743402653662,-191.27592963,0.00020385,2]
[356900230,1743402653671,-500.0,0.00020385,2]
[356900231,1743402653680,-500.0,0.00020391,2]
[356900232,1743402653690,-247.84504867,0.00020411,2]
[356900233,1743402653699,-226.99180534,0.00020411,2]
[356900234,1743402653708,-2002.6242639,0.000205,2]
[356900235,1743402653717,-500.0,0.00020528,2]
[356900236,1743402653728,-507.75724207,0.00020528,2]
[356900237,1743402653737,-998.260782,0.00020528,2]
[356900238,1743402653747,-998.260782,0.00020528,2]
[356900239,1743402653757,-500.0,0.00020547,2]
[356900240,1743402653766,-500.0,0.00020547,2]
[356900241,1743402653870,-500.0,0.00020547,2]
[356900242,1743402653890,-500.0,0.00020547,2]
[356900243,1743402653900,-580.12139399,0.00020547,2]
[356900244,1743402653910,-500.0,0.00020547,2]
[356900245,1743402653920,-585.59,0.00020547,2]
[356900246,1743402653929,-500.0,0.00020547,2]
[356900247,1743402653938,-1002.65,0.00020547,2]
[356900248,1743402653948,-500.0,0.00020547,2]
[356900249,1743402653958,-631.7,0.00020547,2]
[356900250,1743402653968,-625.01,0.00020547,2]
[356900251,1743402653978,-500.0,0.00020547,2]
[356900252,1743402653987,-500.0,0.00020547,2]
[356900253,1743402653996,-722.96,0.00020547,2]
[356900254,1743402654005,-321.39213594,0.00020547,2]
[356900255,1743402654015,-500.0,0.00020547,2]
[356900256,1743402654026,-500.0,0.00020547,2]
[356900257,1743402654035,-500.0,0.00020547,2]
[356900258,1743402654045,-527.51,0.00020547,2]
[356900259,1743402654054,-670.54,0.00020547,2]
[356900260,1743402654064,-500.0,0.00020547,2]
[356900261,1743402654074,-500.0,0.00020547,2]
[356900262,1743402654083,-1014.31,0.00020547,2]
[356900263,1743402654093,-500.0,0.00020547,2]
[356900264,1743402654103,-500.0,0.00020547,2]
[356900265,1743402654113,-1089.99,0.00020547,2]
[356900266,1743402654122,-500.0,0.00020547,2]
[356900267,1743402654134,-500.0,0.00020547,2]
[356900268,1743402654143,-500.0,0.00020547,2]
[356900269,1743402654152,-1564.43,0.00020547,2]
[356900270,1743402654161,-620.47,0.00020547,2]
[356900271,1743402654171,-500.0,0.00020547,2]
[356900272,1743402654180,-636.34,0.00020547,2]
[356900273,1743402654189,-500.0,0.00020547,2]
[356900274,1743402654198,-500.0,0.00020547,2]
[356900275,1743402654208,-622.61,0.00020547,2]
[356900276,1743402654219,-584.14,0.00020547,2]
[356900277,1743402654230,-500.0,0.00020547,2]
[356900278,1743402654240,-500.0,0.00020547,2]
[356900279,1743402654250,-500.0,0.00020547,2]
[356900280,1743402654260,-500.0,0.00020547,2]
[356900281,1743402654270,-500.0,0.00020547,2]
[356900282,1743402654280,-500.0,0.00020547,2]
[356900283,1743402654290,-714.91,0.00020547,2]
[356900284,1743402654299,-1098.2,0.00020547,2]
[356900285,1743402654309,-590.12,0.00020547,2]
[356900286,1743402654319,-500.0,0.00020547,2]
[356900287,1743402654328,-500.0,0.00020547,2]
[356900288,1743402654338,-500.0,0.00020547,2]
[356900289,1743402654347,-500.0,0.00020547,2]
[356900290,1743402654356,-561.7,0.00020547,2]
[356900291,1743402654366,-500.0,0.00020547,2]
[356900292,1743402654378,-516.01,0.00020547,2]
[356900293,1743402654389,-525.82,0.00020547,2]
[356900294,1743402654399,-500.0,0.00020547,2]
[356900295,1743402654409,-533.62,0.00020547,2]
[356900296,1743402654419,-500.0,0.00020547,2]
[356900297,1743402654428,-500.0,0.00020547,2]
[356900298,1743402654438,-500.0,0.00020547,2]
[356900299,1743402654447,-527.04,0.00020547,2]
[356900300,1743402654457,-500.0,0.00020547,2]
[356900301,1743402654467,-533.2,0.00020547,2]
[356900302,1743402654476,-500.0,0.00020547,2]
[356900303,1743402654486,-604.01,0.00020547,2]
[356900304,1743402654495,-500.0,0.00020547,2]
[356900305,1743402654505,-998.260782,0.00020547,2]
[356900306,1743402654515,-602.44,0.00020547,2]
[356900307,1743402654525,-998.260782,0.00020547,2]
[356900308,1743402654535,-500.0,0.00020547,2]
[356900309,1743402654544,-500.0,0.00020547,2]
[356900310,1743402654553,-500.0,0.00020547,2]
[356900311,1743402654563,-3018.36,0.00020547,2]
[356900312,1743402654572,-4189.51,0.00020547,2]
[356900313,1743402654582,-500.0,0.00020547,2]
[356900314,1743402654591,-500.0,0.00020547,2]
[356900315,1743402654601,-500.0,0.00020547,2]
[356900316,1743402654611,-500.0,0.00020547,2]
[356900317,1743402654621,-500.0,0.00020547,2]
[356900318,1743402654635,-1305.58,0.00020547,2]
[356900319,1743402654645,-500.0,0.00020547,2]
[356900320,1743402654655,-500.0,0.00020547,2]
[356900321,1743402654664,-943.5,0.00020547,2]
[356900322,1743402654673,-748.78,0.00020547,2]
[356900323,1743402654683,-2050.6,0.00020547,2]
[356900324,1743402654693,-417.59947562,0.00020547,2]
[356900325,1743402654703,-500.0,0.00020547,2]
[356900326,1743402654714,-2087.99,0.00020547,2]
[356900327,1743402654726,-545.54,0.00020547,2]
[356900328,1743402654736,-741.56,0.00020547,2]
[356900329,1743402654745,-6770.77,0.00020547,2]
[356900330,1743402654756,-500.0,0.00020547,2]
[356900331,1743402654766,-534.22,0.00020547,2]
[356900332,1743402654776,-625.24,0.00020547,2]
[356900333,1743402654788,-500.0,0.00020547,2]
[356900334,1743402654799,-1665.4,0.00020547,2]
[356900335,1743402654809,-871.01,0.00020547,2]
[356900336,1743402654819,-500.0,0.00020547,2]
[356900337,1743402654830,-1649.31,0.00020547,2]
[356900338,1743402654840,-7095.07,0.00020547,2]
[356900339,1743402654849,-500.0,0.00020547,2]
[356900340,1743402654860,-1633.44,0.00020547,2]
[356900341,1743402654872,-1688.19,0.00020547,2]
[356900342,1743402654890,-500.0,0.00020547,2]
[356900343,1743402654900,-500.0,0.00020547,2]
[356900344,1743402654910,-594.41511473,0.00020547,2]
[356900345,1743402654920,-517.62,0.00020547,2]
[356900346,1743402654930,-920.62,0.00020547,2]
[356900347,1743402654939,-721.78,0.00020547,2]
[356900348,1743402654949,-226.55,0.00020547,2]
[356900349,1743402654960,-827.86,0.00020547,2]
[356900350,1743402654969,-2349.9,0.00020547,2]
[356900351,1743402654979,-2019.04,0.00020547,2]
[356900352,1743402654989,-1215.57,0.00020547,2]
[356900353,1743402654998,-404.82368348,0.00020547,2]
[356900354,1743402655007,-517.24,0.00020547,2]
[356900355,1743402655017,-500.0,0.00020547,2]
[356900356,1743402655026,-500.0,0.00020547,2]
[356900357,1743402655035,-4307.25,0.00020547,2]
[356900358,1743402655044,-500.0,0.00020547,2]
[356900359,1743402655054,-500.0,0.00020547,2]
[356900360,1743402655063,-1020.46,0.00020547,2]
[356900361,1743402655072,-692.44,0.00020547,2]
[356900362,1743402655082,-500.0,0.00020547,2]
[356900363,1743402655092,-500.0,0.00020547,2]
[356900364,1743402655101,-623.32,0.00020547,2]
[356900365,1743402655111,-1216.58,0.00020547,2]
[356900366,1743402655120,-500.0,0.00020547,2]
[356900367,1743402655134,-500.0,0.00020547,2]
[356900368,1743402655144,-2912.2,0.00020547,2]
[356900369,1743402655153,-1227.11,0.00020547,2]
[356900370,1743402655163,-1277.13,0.00020547,2]
[356900371,1743402655173,-9548.01,0.00020547,2]
[356900372,1743402655182,-2789.71,0.00020547,2]
[356900373,1743402655191,-1300.3,0.00020547,2]
[356900374,1743402655200,-1442.62,0.00020547,2]
[356900375,1743402655209,-1114.35,0.00020547,2]
[356900376,1743402655218,-539.51,0.00020547,2]
[356900377,1743402655228,-500.0,0.00020547,2]
[356900378,1743402655237,-1887.26,0.00020547,2]
[356900379,1743402655247,-1746.47,0.00020547,2]
[356900380,1743402655257,-500.0,0.00020547,2]
[356900381,1743402655267,-655.92,0.00020547,2]
[356900382,1743402655277,-3799.96,0.00020547,2]
[356900383,1743402655286,-2204.33,0.00020547,2]
[356900384,1743402655395,-500.0,0.00020558,2]
[356900385,1743402655405,-478.35251268,0.00020742,2]
[356900386,1743402655415,-2110.837877,0.00020754,2]
[356900387,1743402655425,-5963.07963262,0.00020762,2]
[356900388,1743402655435,-2110.837877,0.000208,3]
[356900389,1743402655446,-2110.837877,0.000208,5]
[356900390,1743402655456,-807.75290525,0.00020814,2]
[356900391,1743402655466,-500.0,0.00020821,2]
[356900392,1743402655476,-500.0,0.00020821,2]
[356900393,1743402655485,-500.0,0.00020821,2]
[356900394,1743402655495,-493.09308181,0.00020821,2]
[356900395,1743402655504,-500.0,0.00020821,2]
[356900396,1743402655513,-585.59,0.00020821,2]
[356900397,1743402655523,-500.0,0.00020821,2]
[356900398,1743402655533,-1002.65,0.00020821,2]
[356900399,1743402655543,-281.92982663,0.00020821,2]
[356900400,1743402655552,-631.7,0.00020821,2]
[356900401,1743402655562,-625.01,0.00020821,2]
[356900402,1743402655571,-500.0,0.00020821,2]
[356900403,1743402655581,-500.0,0.00020821,2]
[356900404,1743402655590,-722.96,0.00020821,2]
[356900405,1743402655600,-500.0,0.00020821,2]
[356900406,1743402655610,-500.0,0.00020821,2]
[356900407,1743402655619,-500.0,0.00020821,2]
[356900408,1743402655631,-527.51,0.00020821,2]
[356900409,1743402655641,-670.54,0.00020821,2]
[356900410,1743402655650,-500.0,0.00020821,2]
[356900411,1743402655660,-500.0,0.00020821,2]
[356900412,1743402655670,-1014.31,0.00020821,2]
[356900413,1743402655680,-500.0,0.00020821,2]
[356900414,1743402655689,-500.0,0.00020821,2]
[356900415,1743402655698,-1089.99,0.00020821,2]
[356900416,1743402655708,-500.0,0.00020821,2]
[356900417,1743402655717,-300.34052493,0.00020821,2]
[356900418,1743402655727,-500.0,0.00020821,2]
[356900419,1743402655736,-1564.43,0.00020821,2]
[356900420,1743402655746,-620.47,0.00020821,2]
[356900421,1743402655755,-500.0,0.00020821,2]
[356900422,1743402655765,-636.34,0.00020821,2]
[356900423,1743402655774,-500.0,0.00020821,2]
[356900424,1743402655785,-500.0,0.00020821,2]
[356900425,1743402655797,-622.61,0.00020821,2]
[356900426,1743402655807,-584.14,0.00020821,2]
[356900427,1743402655816,-500.0,0.00020821,2]
[356900428,1743402655827,-500.0,0.00020821,2]
[356900429,1743402655836,-500.0,0.00020821,2]
[356900430,1743402655846,-500.0,0.00020821,2]
[356900431,1743402655855,-424.93517982,0.00020821,2]
[356900432,1743402655866,-500.0,0.00020821,2]
[356900433,1743402655877,-714.91,0.00020821,2]
[356900434,1743402655886,-1098.2,0.00020821,2]
[356900435,1743402655896,-590.12,0.00020821,2]
[356900436,1743402655906,-500.0,0.00020821,2]
[356900437,1743402655916,-500.0,0.00020821,2]
[356900438,1743402655926,-500.0,0.00020821,2]
[356900439,1743402655936,-165.31151713,0.00020821,2]
[356900440,1743402655945,-561.7,0.00020821,2]
[356900441,1743402655956,-500.0,0.00020821,2]
[356900442,1743402655966,-516.01,0.00020821,2]
[356900443,1743402655976,-525.82,0.00020821,2]
[356900444,1743402655990,-500.0,0.00020821,2]
[356900445,1743402655999,-533.62,0.00020821,2]
[356900446,1743402656010,-500.0,0.00020821,2]
[356900447,1743402656021,-500.0,0.00020821,2]
[356900448,1743402656032,-500.0,0.00020821,2]
[356900449,1743402656049,-527.04,0.00020821,2]
[356900450,1743402656076,-500.0,0.00020821,2]
[356900451,1743402656099,-533.2,0.00020821,2]
[356900452,1743402656121,-500.0,0.00020821,2]
[356900453,1743402656145,-604.01,0.00020821,2]
[356900454,1743402656169,-500.0,0.00020821,2]
[356900455,1743402656189,-998.260782,0.00020821,2]
[356900456,1743402656211,-602.44,0.00020821,2]
[356900457,1743402656230,-998.260792,0.00020821,2]
[356900458,1743402656247,-500.0,0.00020821,2]
[356900459,1743402656265,-500.0,0.00020821,2]
[356900460,1743402656286,-500.0,0.00020821,2]
[356900461,1743402656308,-3018.36,0.00020821,2]
[356900462,1743402656324,-4189.51,0.00020821,2]
[356900463,1743402656342,-500.0,0.00020821,2]
[356900464,1743402656363,-500.0,0.00020821,2]
[356900465,1743402656379,-500.0,0.00020821,2]
[356900466,1743402656397,-500.0,0.00020821,2]
[356900467,1743402656411,-500.0,0.00020821,2]
[356900468,1743402656427,-1305.58,0.00020821,2]
[356900469,1743402656442,-500.0,0.00020821,2]
[356900470,1743402656457,-500.0,0.00020821,2]
[356900471,1743402656472,-943.5,0.00020821,2]
[356900472,1743402656487,-2050.6,0.00020821,2]
[356900473,1743402656501,-748.78,0.00020821,2]
[356900474,1743402656516,-500.0,0.00020821,2]
[356900475,1743402656532,-2087.99,0.00020821,2]
[356900476,1743402656550,-545.54,0.00020821,2]
[356900477,1743402656565,-741.56,0.00020821,2]
[356900478,1743402656580,-6770.77,0.00020821,2]
[356900479,1743402656594,-500.0,0.00020821,2]
[356900480,1743402656609,-534.22,0.00020821,2]
[356900481,1743402656623,-625.24,0.00020821,2]
[356900482,1743402656639,-500.0,0.00020821,2]
[356900483,1743402656653,-1665.4,0.00020821,2]
[356900484,1743402656668,-871.01,0.00020821,2]
[356900485,1743402656684,-500.0,0.00020821,2]
[356900486,1743402656699,-1649.31,0.00020821,2]
[356900487,1743402656713,-7095.07,0.00020821,2]
[356900488,1743402656728,-500.0,0.00020821,2]
[356900489,1743402656743,-1633.44,0.00020821,2]
[356900490,1743402656758,-1688.19,0.00020821,2]
[356900491,1743402656775,-500.0,0.00020821,2]
[356900492,1743402656792,-500.0,0.00020821,2]
[356900493,1743402656806,-517.62,0.00020821,2]
[356900494,1743402656823,-920.62,0.00020821,2]
[356900495,1743402656838,-721.78,0.00020821,2]
[356900496,1743402656852,-827.86,0.00020821,2]
[356900497,1743402656870,-2349.9,0.00020821,2]
[356900498,1743402656886,-2019.04,0.00020821,2]
[356900499,1743402656902,-1215.57,0.00020821,2]
[356900500,1743402656918,-517.24,0.00020821,2]
[356900501,1743402656933,-500.0,0.00020821,2]
[356900502,1743402656947,-500.0,0.00020821,2]
[356900503,1743402656962,-4307.25,0.00020821,2]
[356900504,1743402656978,-500.0,0.00020821,2]
[356900505,1743402656992,-500.0,0.00020821,2]
[356900506,1743402657008,-1020.46,0.00020821,2]
[356900507,1743402657023,-692.44,0.00020821,2]
[356900508,1743402657039,-500.0,0.00020821,2]
[356900509,1743402657053,-500.0,0.00020821,2]
[356900510,1743402657063,-623.32,0.00020821,2]
[356900511,1743402657073,-1216.58,0.00020821,2]
[356900512,1743402657083,-500.0,0.00020821,2]
[356900513,1743402657093,-500.0,0.00020821,2]
[356900514,1743402657291,-2912.2,0.00020821,2]
[356900515,1743402657326,-1227.11,0.00020821,2]
[356900516,1743402657336,-1277.13,0.00020821,2]
[356900517,1743402657346,-9548.01,0.00020821,2]
[356900518,1743402657356,-2789.71,0.00020821,2]
[356900519,1743402657366,-1300.3,0.00020821,2]
[356900520,1743402657378,-1114.35,0.00020821,2]
[356900521,1743402657389,-1442.62,0.00020821,2]
[356900522,1743402657399,-539.51,0.00020821,2]
[356900523,1743402657409,-500.0,0.00020821,2]
[356900524,1743402657419,-1887.26,0.00020821,2]
[356900525,1743402657429,-1746.47,0.00020821,2]
[356900526,1743402657439,-500.0,0.00020821,2]
[356900527,1743402657449,-655.92,0.00020821,2]
[356900528,1743402657459,-3799.96,0.00020821,2]
[356900529,1743402657468,-2204.33,0.00020821,2]
[356900530,1743402657478,-2110.837877,0.0002085,5]
[356900531,1743402657488,-2110.837877,0.00020868,3]
[356900532,1743402657498,-2110.837877,0.000209,5]
[356900533,1743402657509,-2110.837877,0.00020936,3]
[356900534,1743402657519,-2110.837877,0.0002095,5]
[356900535,1743402657529,-1912.2912842,0.00020965,2]
[356900536,1743402657539,-29856.01972653,0.00021,2]
[356900537,1743402657738,-7766.26668424,0.00021,2]
[356900538,1743402658012,-570.33915409,0.00019178,2]
[356900539,1743402658022,-114.59910588,0.00020547,2]
[356900540,1743402658043,-345.24916212,0.00020547,2]
[356900541,1743402658055,-3232.151732,0.00020547,2]
[356900542,1743402658065,-3692.0,0.00020821,2]
[356900543,1743402658075,-18263.91704728,0.00021,2]
[356900544,1743402658085,-150.0,0.00021,2]
[356900545,1743402658094,-1580.42118792,0.00021,2]
[356900546,1743402658104,-10632.52642819,0.00021,2]
[356900547,1743402658116,-1805.63072563,0.00021,2]
[356900548,1743402658280,-500.0,0.00019178,2]
[356900549,1743402658290,-317.9920126,0.00019178,2]
[356900550,1743402658493,-182.0079874,0.00019178,2]
[356900551,1743402658503,-308.25,0.00019452,2]
[356900552,1743402658514,-25642.25459863,0.00021,2]
[356900553,1743402658525,-3000.0,0.00021,2]
[356900554,1743402658535,-2000.0,0.00021,2]
[356900555,1743402658547,-2110.837877,0.00021,5]
[356900556,1743402658557,-2110.837877,0.00021004,3]
[356900557,1743402658567,-3000.0,0.0002101,2]
[356900558,1743402658577,-3000.0,0.0002102,2]
[356900559,1743402658588,-3817.59979462,0.00021025,30]
[356900560,1743402658599,-3000.0,0.0002103,2]
[356900561,1743402658609,-3000.0,0.0002104,2]
[356900562,1743402658620,-3000.0,0.0002105,2]
[356900563,1743402658632,-3000.0,0.0002106,2]
[356900564,1743402658642,-3000.0,0.0002107,2]
[356900565,1743402658652,-2110.837877,0.00021072,3]
[356900566,1743402658663,-160.0,0.00021072,3]
[356900567,1743402658673,-12458.93820146,0.00021072,3]
[356900568,1743402658683,-3000.0,0.0002108,2]
[356900569,1743402658693,-3000.0,0.0002109,2]
[356900570,1743402658703,-500.0,0.00021095,2]
[356900571,1743402658713,-500.0,0.00021095,2]
[356900572,1743402658722,-500.0,0.00021095,2]
[356900573,1743402658732,-585.59,0.00021095,2]
[356900574,1743402658742,-500.0,0.00021095,2]
[356900575,1743402658752,-625.01,0.00021095,2]
[356900576,1743402658762,-500.0,0.00021095,2]
[356900577,1743402658772,-500.0,0.00021095,2]
[356900578,1743402658783,-722.96,0.00021095,2]
[356900579,1743402658797,-500.0,0.00021095,2]
[356900580,1743402658808,-500.0,0.00021095,2]
[356900581,1743402658818,-500.0,0.00021095,2]
[356900582,1743402658828,-527.51,0.00021095,2]
[356900583,1743402658839,-670.54,0.00021095,2]
[356900584,1743402658849,-500.0,0.00021095,2]
[356900585,1743402658859,-500.0,0.00021095,2]
[356900586,1743402658870,-1014.31,0.00021095,2]
[356900587,1743402658881,-500.0,0.00021095,2]
[356900588,1743402658891,-500.0,0.00021095,2]
[356900589,1743402658902,-1089.99,0.00021095,2]
[356900590,1743402658912,-500.0,0.00021095,2]
[356900591,1743402658922,-500.0,0.00021095,2]
[356900592,1743402658932,-1564.43,0.00021095,2]
[356900593,1743402658942,-620.47,0.00021095,2]
[356900594,1743402658952,-500.0,0.00021095,2]
[356900595,1743402658963,-636.34,0.00021095,2]
[356900596,1743402658973,-306.40934905,0.00021095,2]
[356900597,1743402658983,-500.0,0.00021095,2]
[356900598,1743402658992,-622.61,0.00021095,2]
[356900599,1743402659002,-584.14,0.00021095,2]
[356900600,1743402659017,-500.0,0.00021095,2]
[356900601,1743402659028,-500.0,0.00021095,2]
[356900602,1743402659038,-500.0,0.00021095,2]
[356900603,1743402659048,-500.0,0.00021095,2]
[356900604,1743402659058,-500.0,0.00021095,2]
[356900605,1743402659069,-714.91,0.00021095,2]
[356900606,1743402659079,-1098.2,0.00021095,2]
[356900607,1743402659089,-590.12,0.00021095,2]
[356900608,1743402659099,-500.0,0.00021095,2]
[356900609,1743402659109,-500.0,0.00021095,2]
[356900610,1743402659119,-500.0,0.00021095,2]
[356900611,1743402659129,-561.7,0.00021095,2]
[356900612,1743402659138,-500.0,0.00021095,2]
[356900613,1743402659148,-516.01,0.00021095,2]
[356900614,1743402659158,-525.82,0.00021095,2]
[356900615,1743402659167,-500.0,0.00021095,2]
[356900616,1743402659177,-533.62,0.00021095,2]
[356900617,1743402659187,-500.0,0.00021095,2]
[356900618,1743402659197,-500.0,0.00021095,2]
[356900619,1743402659207,-500.0,0.00021095,2]
[356900620,1743402659217,-527.04,0.00021095,2]
[356900621,1743402659227,-500.0,0.00021095,2]
[356900622,1743402659236,-533.2,0.00021095,2]
[356900623,1743402659246,-500.0,0.00021095,2]
[356900624,1743402659255,-604.01,0.00021095,2]
[356900625,1743402659265,-350.3755983,0.00021095,2]
[356900626,1743402659275,-602.44,0.00021095,2]
[356900627,1743402659285,-500.0,0.00021095,2]
[356900628,1743402659295,-500.0,0.00021095,2]
[356900629,1743402659304,-204.05,0.00021095,2]
[356900630,1743402659314,-3018.36,0.00021095,2]
[356900631,1743402659324,-500.0,0.00021095,2]
[356900632,1743402659335,-500.0,0.00021095,2]
[356900633,1743402659345,-500.0,0.00021095,2]
[356900634,1743402659356,-500.0,0.00021095,2]
[356900635,1743402659366,-500.0,0.00021095,2]
[356900636,1743402659376,-1305.58,0.00021095,2]
[356900637,1743402659386,-500.0,0.00021095,2]
[356900638,1743402659396,-500.0,0.00021095,2]
[356900639,1743402659406,-943.5,0.00021095,2]
[356900640,1743402659610,-748.78,0.00021095,2]
[356900641,1743402659620,-2050.6,0.00021095,2]
[356900642,1743402659632,-500.0,0.00021095,2]
[356900643,1743402659641,-2087.99,0.00021095,2]
[356900644,1743402659651,-545.54,0.00021095,2]
[356900645,1743402659660,-741.56,0.00021095,2]
[356900646,1743402659671,-6770.77,0.00021095,2]
[356900647,1743402659680,-534.22,0.00021095,2]
[356900648,1743402659689,-374.03140619,0.00021095,2]
[356900649,1743402659698,-625.24,0.00021095,2]
[356900650,1743402659708,-500.0,0.00021095,2]
[356900651,1743402659718,-1665.4,0.00021095,2]
[356900652,1743402659728,-871.01,0.00021095,2]
[356900653,1743402659739,-500.0,0.00021095,2]
[356900654,1743402659749,-1649.31,0.00021095,2]